[Event "Titled Tuesday Blitz August 08 Early 2023"]
[White "LuxLinster"]
[Black "Floresvillar Gonzalez, Luis Migu"]
[BlackFideId "5100542"]
[WhiteElo "2284"]
[BlackElo "2142"]
[Result "0-1"]
[Round "5"]
[TimeControl "180+1"]
[Date "2023.08.08"]
[WhiteClock "0:00:00"]
[BlackClock "0:00:05"]
[Board "236"]

1. d4 {[%clk 0:03:00]}  Nf6 {[%clk 0:02:58]} 2. c4 {[%clk 0:03:00]}  e5 {[%clk 0:02:57]} 3. dxe5 {[%clk 0:03:00]}  Ng4 {[%clk 0:02:56]} 4. e3 {[%clk 0:03:00]}  Nxe5 {[%clk 0:02:53]} 5. f4 {[%clk 0:03:01]}  Ng6 {[%clk 0:02:50]} 6. Nc3 {[%clk 0:03:01]}  Bc5 {[%clk 0:02:45]} 7. Nf3 {[%clk 0:02:54]}  Nc6 {[%clk 0:02:44]} 8. Bd3 {[%clk 0:02:48]}  O-O {[%clk 0:02:43]} 9. O-O {[%clk 0:02:48]}  Nxf4 {[%clk 0:02:37]} 10. Bc2 {[%clk 0:02:11]}  Ng6 {[%clk 0:02:27]} 11. Kh1 {[%clk 0:02:03]}  a5 {[%clk 0:02:24]} 12. e4 {[%clk 0:01:59]}  d6 {[%clk 0:02:22]} 13. Nd5 {[%clk 0:01:59]}  Nce5 {[%clk 0:02:17]} 14. Bg5 {[%clk 0:01:54]}  f6 {[%clk 0:02:14]} 15. Bd2 {[%clk 0:01:53]}  c6 {[%clk 0:02:12]} 16. Nc3 {[%clk 0:01:51]}  Bg4 {[%clk 0:02:07]} 17. Qe2 {[%clk 0:01:28]}  Qd7 {[%clk 0:02:01]} 18. Rad1 {[%clk 0:01:26]}  Rae8 {[%clk 0:01:58]} 19. Be3 {[%clk 0:01:21]}  Qe6 {[%clk 0:01:39]} 20. b3 {[%clk 0:01:04]}  Bxe3 {[%clk 0:01:33]} 21. Qxe3 {[%clk 0:01:05]}  Nxf3 {[%clk 0:01:30]} 22. gxf3 {[%clk 0:01:04]}  Bh3 {[%clk 0:01:30]} 23. Rg1 {[%clk 0:01:02]}  Qe5 {[%clk 0:01:14]} 24. Rg3 {[%clk 0:00:59]}  Bc8 {[%clk 0:01:06]} 25. Qd4 {[%clk 0:00:50]}  Qxd4 {[%clk 0:00:59]} 26. Rxd4 {[%clk 0:00:51]}  Rd8 {[%clk 0:00:57]} 27. Rg1 {[%clk 0:00:47]}  Kf7 {[%clk 0:00:54]} 28. Rgd1 {[%clk 0:00:47]}  Ke7 {[%clk 0:00:54]} 29. Kg2 {[%clk 0:00:35]}  Rfe8 {[%clk 0:00:51]} 30. Kg3 {[%clk 0:00:34]}  h5 {[%clk 0:00:47]} 31. Kf2 {[%clk 0:00:29]}  Nf4 {[%clk 0:00:42]} 32. Ke3 {[%clk 0:00:26]}  Ne6 {[%clk 0:00:41]} 33. R4d2 {[%clk 0:00:27]}  g5 {[%clk 0:00:34]} 34. a3 {[%clk 0:00:23]}  Nf4 {[%clk 0:00:33]} 35. h4 {[%clk 0:00:20]}  b6 {[%clk 0:00:26]} 36. Rg1 {[%clk 0:00:16]}  Rg8 {[%clk 0:00:24]} 37. Ne2 {[%clk 0:00:15]}  Nxe2 {[%clk 0:00:22]} 38. Rxe2 {[%clk 0:00:16]}  Be6 {[%clk 0:00:21]} 39. hxg5 {[%clk 0:00:14]}  fxg5 {[%clk 0:00:21]} 40. Reg2 {[%clk 0:00:14]}  Kf6 {[%clk 0:00:19]} 41. Bd1 {[%clk 0:00:14]}  h4 {[%clk 0:00:18]} 42. f4 {[%clk 0:00:13]}  gxf4+ {[%clk 0:00:17]} 43. Kxf4 {[%clk 0:00:12]}  Rxg2 {[%clk 0:00:16]} 44. Rxg2 {[%clk 0:00:13]}  h3 {[%clk 0:00:16]} 45. Rh2 {[%clk 0:00:11]}  Rh8 {[%clk 0:00:15]} 46. Bf3 {[%clk 0:00:12]}  c5 {[%clk 0:00:14]} 47. Be2 {[%clk 0:00:09]}  Bd7 {[%clk 0:00:12]} 48. Bf3 {[%clk 0:00:08]}  Rh4+ {[%clk 0:00:10]} 49. Kg3 {[%clk 0:00:08]}  Kg5 {[%clk 0:00:09]} 50. Rd2 {[%clk 0:00:07]}  Rh6 {[%clk 0:00:07]} 51. Bd1 {[%clk 0:00:01]}  h2 {[%clk 0:00:06]} 52. Rxh2 {[%clk 0:00:01]}  Rxh2 {[%clk 0:00:06]} 53. Kxh2 {[%clk 0:00:02]}  Kf4 {[%clk 0:00:06]} 54. Kg2 {[%clk 0:00:02]}  Kxe4 {[%clk 0:00:05]} 55. Kf2 {[%clk 0:00:00]}  Kd3 {[%clk 0:00:05]} 0-1


[Site "https://www.chess.com"]

[Event "Titled Tuesday Blitz August 08 Early 2023"]
[White "Mesfin, Leykun"]
[Black "Osiecki, Stanislaw"]
[WhiteFideId "15700097"]
[BlackFideId "1102990"]
[WhiteElo "2222"]
[BlackElo "2004"]
[Result "1/2-1/2"]
[Round "5"]
[TimeControl "180+1"]
[Date "2023.08.08"]
[WhiteClock "0:01:04"]
[BlackClock "0:00:49"]
[Board "240"]

1. e4 {[%clk 0:03:00]}  e6 {[%clk 0:02:58]} 2. d4 {[%clk 0:02:59]}  d5 {[%clk 0:02:58]} 3. Nc3 {[%clk 0:02:59]}  Bb4 {[%clk 0:02:56]} 4. e5 {[%clk 0:02:58]}  c5 {[%clk 0:02:56]} 5. a3 {[%clk 0:02:58]}  Bxc3+ {[%clk 0:02:56]} 6. bxc3 {[%clk 0:02:58]}  Qc7 {[%clk 0:02:57]} 7. Bd2 {[%clk 0:02:55]}  Ne7 {[%clk 0:02:56]} 8. Nf3 {[%clk 0:02:53]}  O-O {[%clk 0:02:55]} 9. Bd3 {[%clk 0:02:53]}  h6 {[%clk 0:02:56]} 10. O-O {[%clk 0:02:52]}  b6 {[%clk 0:02:56]} 11. Re1 {[%clk 0:02:52]}  Ba6 {[%clk 0:02:56]} 12. h3 {[%clk 0:02:41]}  Bxd3 {[%clk 0:02:55]} 13. cxd3 {[%clk 0:02:41]}  cxd4 {[%clk 0:02:54]} 14. cxd4 {[%clk 0:02:41]}  Nbc6 {[%clk 0:02:55]} 15. Be3 {[%clk 0:02:39]}  Nf5 {[%clk 0:02:49]} 16. Rc1 {[%clk 0:02:28]}  Qd7 {[%clk 0:02:48]} 17. Qd2 {[%clk 0:02:25]}  Na5 {[%clk 0:02:40]} 18. Rb1 {[%clk 0:02:17]}  Rfc8 {[%clk 0:02:37]} 19. Bf4 {[%clk 0:02:15]}  Nc6 {[%clk 0:02:35]} 20. Be3 {[%clk 0:02:07]}  Rc7 {[%clk 0:02:34]} 21. g4 {[%clk 0:02:07]}  Nxe3 {[%clk 0:02:34]} 22. Qxe3 {[%clk 0:02:05]}  Rac8 {[%clk 0:02:29]} 23. g5 {[%clk 0:02:03]}  h5 {[%clk 0:02:28]} 24. Kh2 {[%clk 0:02:01]}  g6 {[%clk 0:02:28]} 25. Rec1 {[%clk 0:01:46]}  Ne7 {[%clk 0:02:28]} 26. Rxc7 {[%clk 0:01:44]}  Qxc7 {[%clk 0:02:28]} 27. Nh4 {[%clk 0:01:37]}  Qc2 {[%clk 0:02:24]} 28. Rg1 {[%clk 0:01:34]}  Rc3 {[%clk 0:02:18]} 29. Rg3 {[%clk 0:01:33]}  Qb3 {[%clk 0:02:10]} 30. Rf3 {[%clk 0:01:31]}  Qxa3 {[%clk 0:02:02]} 31. Qf4 {[%clk 0:01:30]}  Nf5 {[%clk 0:02:02]} 32. Nxf5 {[%clk 0:01:28]}  exf5 {[%clk 0:02:02]} 33. e6 {[%clk 0:01:28]}  fxe6 {[%clk 0:01:57]} 34. Qb8+ {[%clk 0:01:27]}  Qf8 {[%clk 0:01:55]} 35. Qxa7 {[%clk 0:01:24]}  Qd8 {[%clk 0:01:48]} 36. h4 {[%clk 0:01:19]}  Qd6+ {[%clk 0:01:34]} 37. Kg2 {[%clk 0:01:17]}  Qc7 {[%clk 0:01:13]} 38. Qa8+ {[%clk 0:01:14]}  Kg7 {[%clk 0:01:07]} 39. Qe8 {[%clk 0:01:11]}  Qf7 {[%clk 0:01:05]} 40. Qb5 {[%clk 0:01:08]}  Qc7 {[%clk 0:00:55]} 41. Qe8 {[%clk 0:01:06]}  Qf7 {[%clk 0:00:53]} 42. Qb5 {[%clk 0:01:05]}  Qc7 {[%clk 0:00:49]} 43. Qe8 {[%clk 0:01:04]} 1/2-1/2


[Site "https://www.chess.com"]

[Event "Titled Tuesday Blitz August 08 Early 2023"]
[White "abelmat"]
[Black "Clawitter, Craig"]
[BlackFideId "2023105"]
[WhiteElo "1916"]
[BlackElo "2207"]
[Result "0-1"]
[Round "5"]
[TimeControl "180+1"]
[Date "2023.08.08"]
[WhiteClock "0:00:16"]
[BlackClock "0:00:10"]
[Board "241"]

1. d4 {[%clk 0:03:00]}  e6 {[%clk 0:03:00]} 2. c4 {[%clk 0:03:00]}  Nf6 {[%clk 0:03:00]} 3. Nf3 {[%clk 0:03:00]}  d5 {[%clk 0:03:01]} 4. Nc3 {[%clk 0:03:00]}  c6 {[%clk 0:03:01]} 5. e3 {[%clk 0:03:00]}  Nbd7 {[%clk 0:03:01]} 6. Bd3 {[%clk 0:03:00]}  dxc4 {[%clk 0:03:01]} 7. Bxc4 {[%clk 0:03:00]}  b5 {[%clk 0:03:02]} 8. Bd3 {[%clk 0:03:01]}  Bd6 {[%clk 0:03:02]} 9. O-O {[%clk 0:03:01]}  O-O {[%clk 0:03:01]} 10. e4 {[%clk 0:03:01]}  e5 {[%clk 0:03:01]} 11. Bg5 {[%clk 0:03:01]}  Re8 {[%clk 0:02:46]} 12. Rc1 {[%clk 0:03:00]}  Bb7 {[%clk 0:02:45]} 13. d5 {[%clk 0:02:55]}  cxd5 {[%clk 0:02:41]} 14. Bxb5 {[%clk 0:02:35]}  d4 {[%clk 0:02:30]} 15. Bxf6 {[%clk 0:02:28]}  Nxf6 {[%clk 0:01:49]} 16. Bxe8 {[%clk 0:02:23]}  dxc3 {[%clk 0:01:49]} 17. Qb3 {[%clk 0:01:30]}  Qxe8 {[%clk 0:01:18]} 18. Qxb7 {[%clk 0:01:29]}  Rb8 {[%clk 0:01:13]} 19. Qa6 {[%clk 0:01:19]}  cxb2 {[%clk 0:01:03]} 20. Rb1 {[%clk 0:01:16]}  Nxe4 {[%clk 0:00:50]} 21. Qd3 {[%clk 0:01:01]}  Qc6 {[%clk 0:00:26]} 22. h4 {[%clk 0:00:31]}  Nc3 {[%clk 0:00:15]} 23. Qc2 {[%clk 0:00:30]}  Qc4 {[%clk 0:00:08]} 24. Ng5 {[%clk 0:00:29]}  Ne2+ {[%clk 0:00:08]} 25. Qxe2 {[%clk 0:00:15]}  Qxe2 {[%clk 0:00:08]} 26. Rfe1 {[%clk 0:00:16]}  Qxe1+ {[%clk 0:00:09]} 27. Rxe1 {[%clk 0:00:16]}  b1=Q {[%clk 0:00:10]} 28. Rxb1 {[%clk 0:00:16]}  Rxb1+ {[%clk 0:00:10]} 29. Kh2 {[%clk 0:00:17]}  e4+ {[%clk 0:00:10]} 30. Kh3 {[%clk 0:00:17]}  f5 {[%clk 0:00:10]} 31. Ne6 {[%clk 0:00:16]}  Rh1# {[%clk 0:00:10]} 0-1


[Site "https://www.chess.com"]

[Event "Titled Tuesday Blitz August 08 Early 2023"]
[White "Grischuk, Alexander"]
[Black "Caruana, Fabiano"]
[WhiteFideId "4126025"]
[BlackFideId "2020009"]
[WhiteElo "3040"]
[BlackElo "3100"]
[Result "1/2-1/2"]
[Round "6"]
[TimeControl "180+1"]
[Date "2023.08.08"]
[WhiteClock "0:00:04"]
[BlackClock "0:00:08"]
[Board "1"]

1. d4 {[%clk 0:02:59]}  Nf6 {[%clk 0:02:58]} 2. c4 {[%clk 0:02:59]}  e6 {[%clk 0:02:58]} 3. Bg5 {[%clk 0:03:00]}  Bb4+ {[%clk 0:02:48]} 4. Nd2 {[%clk 0:03:00]}  h6 {[%clk 0:02:47]} 5. Bh4 {[%clk 0:03:00]}  c5 {[%clk 0:02:43]} 6. a3 {[%clk 0:02:53]}  Bxd2+ {[%clk 0:02:41]} 7. Qxd2 {[%clk 0:02:54]}  cxd4 {[%clk 0:02:39]} 8. Nf3 {[%clk 0:02:51]}  d5 {[%clk 0:02:05]} 9. cxd5 {[%clk 0:02:49]}  Qxd5 {[%clk 0:02:06]} 10. Qxd4 {[%clk 0:02:49]}  Nc6 {[%clk 0:02:03]} 11. Qc3 {[%clk 0:02:21]}  e5 {[%clk 0:01:59]} 12. Bxf6 {[%clk 0:02:16]}  gxf6 {[%clk 0:02:00]} 13. Rd1 {[%clk 0:02:16]}  Qe4 {[%clk 0:01:50]} 14. e3 {[%clk 0:02:16]}  Be6 {[%clk 0:01:49]} 15. Nd2 {[%clk 0:01:54]}  Qg6 {[%clk 0:01:49]} 16. Bd3 {[%clk 0:01:46]}  Qg7 {[%clk 0:00:52]} 17. Be4 {[%clk 0:01:21]}  Rc8 {[%clk 0:00:47]} 18. Nc4 {[%clk 0:01:00]}  O-O {[%clk 0:00:43]} 19. Nd6 {[%clk 0:01:01]}  Rc7 {[%clk 0:00:34]} 20. O-O {[%clk 0:01:00]}  Kh8 {[%clk 0:00:30]} 21. g3 {[%clk 0:00:50]}  Bg4 {[%clk 0:00:20]} 22. f3 {[%clk 0:00:43]}  Be6 {[%clk 0:00:19]} 23. b4 {[%clk 0:00:40]}  Rd7 {[%clk 0:00:19]} 24. Nxb7 {[%clk 0:00:28]}  Rxb7 {[%clk 0:00:12]} 25. Bxc6 {[%clk 0:00:23]}  Rbb8 {[%clk 0:00:08]} 26. b5 {[%clk 0:00:21]}  Qg5 {[%clk 0:00:07]} 27. a4 {[%clk 0:00:19]}  h5 {[%clk 0:00:06]} 28. f4 {[%clk 0:00:18]}  Qg6 {[%clk 0:00:06]} 29. fxe5 {[%clk 0:00:17]}  f5 {[%clk 0:00:06]} 30. Qd4 {[%clk 0:00:17]}  Rg8 {[%clk 0:00:06]} 31. Qh4 {[%clk 0:00:13]}  Kh7 {[%clk 0:00:03]} 32. Rd4 {[%clk 0:00:12]}  Qh6 {[%clk 0:00:03]} 33. Qf4 {[%clk 0:00:12]}  Rg5 {[%clk 0:00:03]} 34. h4 {[%clk 0:00:09]}  Rg6 {[%clk 0:00:03]} 35. Qxh6+ {[%clk 0:00:10]}  Kxh6 {[%clk 0:00:04]} 36. Kf2 {[%clk 0:00:10]}  Rbg8 {[%clk 0:00:04]} 37. Rg1 {[%clk 0:00:11]}  Rc8 {[%clk 0:00:04]} 38. Rd6 {[%clk 0:00:08]}  Rg4 {[%clk 0:00:02]} 39. Rd4 {[%clk 0:00:09]}  Rg6 {[%clk 0:00:02]} 40. a5 {[%clk 0:00:08]}  a6 {[%clk 0:00:01]} 41. Rd2 {[%clk 0:00:07]}  axb5 {[%clk 0:00:02]} 42. Bxb5 {[%clk 0:00:08]}  Rc5 {[%clk 0:00:02]} 43. Be2 {[%clk 0:00:05]}  Rxa5 {[%clk 0:00:02]} 44. Rb1 {[%clk 0:00:04]}  Rxe5 {[%clk 0:00:03]} 45. Rb8 {[%clk 0:00:04]}  Kg7 {[%clk 0:00:03]} 46. Bxh5 {[%clk 0:00:04]}  Rh6 {[%clk 0:00:04]} 47. Bf3 {[%clk 0:00:04]}  Rc5 {[%clk 0:00:04]} 48. Rb6 {[%clk 0:00:04]}  Kf6 {[%clk 0:00:04]} 49. Rc6 {[%clk 0:00:03]}  Rxc6 {[%clk 0:00:04]} 50. Bxc6 {[%clk 0:00:04]}  Rh8 {[%clk 0:00:05]} 51. Bf3 {[%clk 0:00:04]}  Rc8 {[%clk 0:00:05]} 52. e4 {[%clk 0:00:03]}  fxe4 {[%clk 0:00:05]} 53. Bxe4 {[%clk 0:00:04]}  Kg7 {[%clk 0:00:06]} 54. Bf3 {[%clk 0:00:04]}  Rc5 {[%clk 0:00:06]} 55. g4 {[%clk 0:00:04]}  Rc4 {[%clk 0:00:05]} 56. Kg3 {[%clk 0:00:05]}  Rc3 {[%clk 0:00:06]} 57. Rd4 {[%clk 0:00:04]}  Rc4 {[%clk 0:00:04]} 58. Rd3 {[%clk 0:00:03]}  Rb4 {[%clk 0:00:05]} 59. Re3 {[%clk 0:00:04]}  Rb3 {[%clk 0:00:05]} 60. Rxb3 {[%clk 0:00:03]}  Bxb3 {[%clk 0:00:06]} 61. Kf4 {[%clk 0:00:03]}  Bc2 {[%clk 0:00:06]} 62. Be4 {[%clk 0:00:03]}  Bd1 {[%clk 0:00:06]} 63. Bf5 {[%clk 0:00:03]}  f6 {[%clk 0:00:06]} 64. Ke4 {[%clk 0:00:03]}  Bc2+ {[%clk 0:00:06]} 65. Kd5 {[%clk 0:00:04]}  Bd1 {[%clk 0:00:06]} 66. Ke6 {[%clk 0:00:04]}  Bxg4 {[%clk 0:00:07]} 67. Bxg4 {[%clk 0:00:04]}  Kh8 {[%clk 0:00:07]} 68. Kf7 {[%clk 0:00:04]}  f5 {[%clk 0:00:08]} 69. Bxf5 {[%clk 0:00:04]} 1/2-1/2


[Site "https://www.chess.com"]

[Event "Titled Tuesday Blitz August 08 Early 2023"]
[White "Fedoseev, Vladimir"]
[Black "Aronian, Levon"]
[WhiteFideId "24130737"]
[BlackFideId "13300474"]
[WhiteElo "3093"]
[BlackElo "3037"]
[Result "1/2-1/2"]
[Round "6"]
[TimeControl "180+1"]
[Date "2023.08.08"]
[WhiteClock "0:00:10"]
[BlackClock "0:00:08"]
[Board "2"]

1. Nf3 {[%clk 0:02:56]}  c5 {[%clk 0:02:59]} 2. c4 {[%clk 0:02:49]}  Nc6 {[%clk 0:02:54]} 3. d4 {[%clk 0:02:46]}  cxd4 {[%clk 0:02:53]} 4. Nxd4 {[%clk 0:02:47]}  Nf6 {[%clk 0:02:51]} 5. Nc3 {[%clk 0:02:47]}  e6 {[%clk 0:02:49]} 6. a3 {[%clk 0:02:46]}  Be7 {[%clk 0:02:41]} 7. e4 {[%clk 0:02:44]}  O-O {[%clk 0:02:33]} 8. Nf3 {[%clk 0:02:44]}  Qa5 {[%clk 0:02:29]} 9. Bd2 {[%clk 0:02:34]}  Qh5 {[%clk 0:02:28]} 10. h3 {[%clk 0:02:30]}  d5 {[%clk 0:02:21]} 11. g4 {[%clk 0:02:07]}  Nxg4 {[%clk 0:02:20]} 12. cxd5 {[%clk 0:02:06]}  exd5 {[%clk 0:02:14]} 13. Nh2 {[%clk 0:01:42]}  Nf6 {[%clk 0:02:01]} 14. Qxh5 {[%clk 0:01:41]}  Nxh5 {[%clk 0:02:02]} 15. Nxd5 {[%clk 0:01:38]}  Be6 {[%clk 0:01:42]} 16. Be2 {[%clk 0:01:26]}  Nf6 {[%clk 0:01:42]} 17. Nxe7+ {[%clk 0:01:25]}  Nxe7 {[%clk 0:01:43]} 18. f3 {[%clk 0:01:24]}  Ng6 {[%clk 0:01:37]} 19. Ng4 {[%clk 0:01:18]}  Nh5 {[%clk 0:01:37]} 20. Kf2 {[%clk 0:01:08]}  Nhf4 {[%clk 0:01:35]} 21. Bf1 {[%clk 0:00:57]}  Rad8 {[%clk 0:01:28]} 22. Bb4 {[%clk 0:00:53]}  Rfe8 {[%clk 0:01:28]} 23. Ne3 {[%clk 0:00:45]}  Nd3+ {[%clk 0:01:20]} 24. Bxd3 {[%clk 0:00:44]}  Rxd3 {[%clk 0:01:20]} 25. h4 {[%clk 0:00:37]}  Nf4 {[%clk 0:01:13]} 26. Bc3 {[%clk 0:00:32]}  Nh3+ {[%clk 0:01:08]} 27. Ke2 {[%clk 0:00:32]}  Nf4+ {[%clk 0:01:08]} 28. Kf2 {[%clk 0:00:32]}  f5 {[%clk 0:00:57]} 29. Rag1 {[%clk 0:00:28]}  Re7 {[%clk 0:00:48]} 30. exf5 {[%clk 0:00:17]}  Bb3 {[%clk 0:00:43]} 31. Re1 {[%clk 0:00:17]}  Rdd7 {[%clk 0:00:31]} 32. h5 {[%clk 0:00:17]}  Nd3+ {[%clk 0:00:31]} 33. Kg3 {[%clk 0:00:16]}  Nxe1 {[%clk 0:00:30]} 34. Rxe1 {[%clk 0:00:17]}  Bf7 {[%clk 0:00:15]} 35. Kf4 {[%clk 0:00:17]}  Bxh5 {[%clk 0:00:15]} 36. Rg1 {[%clk 0:00:17]}  g6 {[%clk 0:00:10]} 37. Nc4 {[%clk 0:00:15]}  Rf7 {[%clk 0:00:07]} 38. f6 {[%clk 0:00:12]}  Rc7 {[%clk 0:00:07]} 39. Nd6 {[%clk 0:00:08]}  Rxc3 {[%clk 0:00:07]} 40. bxc3 {[%clk 0:00:07]}  Rxf6+ {[%clk 0:00:07]} 41. Ke5 {[%clk 0:00:08]}  Rxf3 {[%clk 0:00:07]} 42. c4 {[%clk 0:00:08]}  b6 {[%clk 0:00:07]} 43. Nb5 {[%clk 0:00:08]}  a6 {[%clk 0:00:07]} 44. Nd4 {[%clk 0:00:08]}  Rxa3 {[%clk 0:00:07]} 45. Rf1 {[%clk 0:00:08]}  Kg7 {[%clk 0:00:06]} 46. Ne6+ {[%clk 0:00:08]}  Kh6 {[%clk 0:00:06]} 47. Rf7 {[%clk 0:00:08]}  Rc3 {[%clk 0:00:03]} 48. Kd4 {[%clk 0:00:07]}  Rc1 {[%clk 0:00:03]} 49. Nf8 {[%clk 0:00:07]}  Be2 {[%clk 0:00:03]} 50. Rxh7+ {[%clk 0:00:07]}  Kg5 {[%clk 0:00:03]} 51. Rc7 {[%clk 0:00:05]}  b5 {[%clk 0:00:03]} 52. Rc5+ {[%clk 0:00:05]}  Kh6 {[%clk 0:00:02]} 53. cxb5 {[%clk 0:00:05]}  Rxc5 {[%clk 0:00:02]} 54. Kxc5 {[%clk 0:00:05]}  Bxb5 {[%clk 0:00:03]} 55. Ne6 {[%clk 0:00:05]}  Bd3 {[%clk 0:00:02]} 56. Nf4 {[%clk 0:00:05]}  Bc2 {[%clk 0:00:02]} 57. Nxg6 {[%clk 0:00:05]}  Kxg6 {[%clk 0:00:03]} 58. Kb4 {[%clk 0:00:06]}  Kf5 {[%clk 0:00:03]} 59. Kc3 {[%clk 0:00:07]}  Ke4 {[%clk 0:00:04]} 60. Kb2 {[%clk 0:00:08]}  Kd4 {[%clk 0:00:05]} 61. Kxc2 {[%clk 0:00:08]}  Kc4 {[%clk 0:00:05]} 62. Kb2 {[%clk 0:00:09]}  a5 {[%clk 0:00:06]} 63. Ka2 {[%clk 0:00:09]}  a4 {[%clk 0:00:07]} 64. Kb2 {[%clk 0:00:10]}  a3+ {[%clk 0:00:08]} 65. Kxa3 {[%clk 0:00:10]} 1/2-1/2


[Site "https://www.chess.com"]

[Event "Titled Tuesday Blitz August 08 Early 2023"]
[White "Paravyan, David"]
[Black "Erigaisi Arjun"]
[WhiteFideId "4194985"]
[BlackFideId "35009192"]
[WhiteElo "3037"]
[BlackElo "3086"]
[Result "0-1"]
[Round "6"]
[TimeControl "180+1"]
[Date "2023.08.08"]
[WhiteClock "0:00:01"]
[BlackClock "0:00:03"]
[Board "3"]

1. e4 {[%clk 0:03:00]}  e6 {[%clk 0:02:57]} 2. d4 {[%clk 0:03:00]}  g6 {[%clk 0:02:57]} 3. h4 {[%clk 0:03:00]}  Nf6 {[%clk 0:02:54]} 4. e5 {[%clk 0:02:59]}  Nd5 {[%clk 0:02:53]} 5. c4 {[%clk 0:02:59]}  Nb6 {[%clk 0:02:53]} 6. Nc3 {[%clk 0:03:00]}  d6 {[%clk 0:02:52]} 7. Bg5 {[%clk 0:02:59]}  Be7 {[%clk 0:02:52]} 8. Bxe7 {[%clk 0:02:58]}  Qxe7 {[%clk 0:02:53]} 9. exd6 {[%clk 0:02:56]}  cxd6 {[%clk 0:02:53]} 10. h5 {[%clk 0:02:56]}  O-O {[%clk 0:02:50]} 11. Qd2 {[%clk 0:02:54]}  Nc6 {[%clk 0:02:47]} 12. O-O-O {[%clk 0:02:52]}  e5 {[%clk 0:02:43]} 13. hxg6 {[%clk 0:02:46]}  fxg6 {[%clk 0:02:43]} 14. c5 {[%clk 0:02:44]}  dxc5 {[%clk 0:02:27]} 15. dxc5 {[%clk 0:02:44]}  Qxc5 {[%clk 0:02:28]} 16. Qh6 {[%clk 0:02:41]}  Qe7 {[%clk 0:02:26]} 17. Nf3 {[%clk 0:02:22]}  Bg4 {[%clk 0:02:05]} 18. Ng5 {[%clk 0:02:21]}  Bxd1 {[%clk 0:02:05]} 19. Nxh7 {[%clk 0:02:21]}  Bh5 {[%clk 0:01:28]} 20. Rxh5 {[%clk 0:01:27]}  gxh5 {[%clk 0:01:29]} 21. Bd3 {[%clk 0:01:27]}  Nb4 {[%clk 0:01:12]} 22. Be4 {[%clk 0:01:10]}  Qg7 {[%clk 0:00:52]} 23. Qxh5 {[%clk 0:00:59]}  Rxf2 {[%clk 0:00:53]} 24. Ng5 {[%clk 0:00:55]}  Qf6 {[%clk 0:00:36]} 25. Nh3 {[%clk 0:00:10]}  Rf1+ {[%clk 0:00:24]} 26. Kd2 {[%clk 0:00:10]}  Rd8+ {[%clk 0:00:09]} 27. Ke2 {[%clk 0:00:11]}  Nc4 {[%clk 0:00:10]} 28. Bf3 {[%clk 0:00:04]}  Rxf3 {[%clk 0:00:09]} 29. gxf3 {[%clk 0:00:05]}  Rd2+ {[%clk 0:00:09]} 30. Kf1 {[%clk 0:00:06]}  Ne3+ {[%clk 0:00:08]} 31. Ke1 {[%clk 0:00:06]}  Rh2 {[%clk 0:00:06]} 32. Qe8+ {[%clk 0:00:05]}  Kg7 {[%clk 0:00:06]} 33. Nf2 {[%clk 0:00:04]}  Rxf2 {[%clk 0:00:03]} 34. Kxf2 {[%clk 0:00:05]}  Ned5 {[%clk 0:00:02]} 35. Ne4 {[%clk 0:00:02]}  Nd3+ {[%clk 0:00:02]} 36. Ke2 {[%clk 0:00:02]}  N3f4+ {[%clk 0:00:03]} 37. Kd2 {[%clk 0:00:03]}  Qe7 {[%clk 0:00:02]} 38. Qc8 {[%clk 0:00:03]}  Nf6 {[%clk 0:00:01]} 39. a3 {[%clk 0:00:02]}  Nxe4+ {[%clk 0:00:02]} 40. fxe4 {[%clk 0:00:02]}  Qd6+ {[%clk 0:00:02]} 41. Kc1 {[%clk 0:00:01]}  Qc6+ {[%clk 0:00:03]} 0-1


[Site "https://www.chess.com"]

[Event "Titled Tuesday Blitz August 08 Early 2023"]
[White "Pranesh M"]
[Black "Tabatabaei, M. Amin"]
[WhiteFideId "35028600"]
[BlackFideId "12521213"]
[WhiteElo "3056"]
[BlackElo "3019"]
[Result "1/2-1/2"]
[Round "6"]
[TimeControl "180+1"]
[Date "2023.08.08"]
[WhiteClock "0:00:36"]
[BlackClock "0:00:12"]
[Board "4"]

1. e4 {[%clk 0:03:00]}  c6 {[%clk 0:02:59]} 2. d4 {[%clk 0:03:01]}  d5 {[%clk 0:02:59]} 3. e5 {[%clk 0:03:01]}  Bf5 {[%clk 0:02:59]} 4. Nc3 {[%clk 0:03:02]}  e6 {[%clk 0:02:57]} 5. g4 {[%clk 0:03:02]}  Bg6 {[%clk 0:02:58]} 6. Nge2 {[%clk 0:03:03]}  c5 {[%clk 0:02:57]} 7. h4 {[%clk 0:03:03]}  h5 {[%clk 0:02:56]} 8. Nf4 {[%clk 0:03:04]}  Bh7 {[%clk 0:02:57]} 9. g5 {[%clk 0:03:04]}  Ne7 {[%clk 0:02:51]} 10. Qxh5 {[%clk 0:03:03]}  Nbc6 {[%clk 0:01:36]} 11. Nb5 {[%clk 0:03:02]}  g6 {[%clk 0:01:32]} 12. Nd6+ {[%clk 0:03:01]}  Qxd6 {[%clk 0:01:26]} 13. exd6 {[%clk 0:02:58]}  gxh5 {[%clk 0:01:26]} 14. dxe7 {[%clk 0:02:57]}  Bxe7 {[%clk 0:01:27]} 15. dxc5 {[%clk 0:02:53]}  Nd4 {[%clk 0:01:24]} 16. Bd3 {[%clk 0:02:28]}  Bxd3 {[%clk 0:01:22]} 17. cxd3 {[%clk 0:02:28]}  Bxc5 {[%clk 0:01:15]} 18. Kd1 {[%clk 0:02:16]}  Kd7 {[%clk 0:01:09]} 19. Be3 {[%clk 0:02:15]}  Rac8 {[%clk 0:01:09]} 20. Rc1 {[%clk 0:02:14]}  Bb6 {[%clk 0:00:49]} 21. Rxc8 {[%clk 0:02:13]}  Kxc8 {[%clk 0:00:50]} 22. g6 {[%clk 0:01:52]}  fxg6 {[%clk 0:00:51]} 23. Nxg6 {[%clk 0:01:49]}  Rh7 {[%clk 0:00:51]} 24. Rg1 {[%clk 0:01:46]}  Nf5 {[%clk 0:00:48]} 25. Bxb6 {[%clk 0:01:45]}  axb6 {[%clk 0:00:48]} 26. Rg5 {[%clk 0:01:43]}  Rg7 {[%clk 0:00:40]} 27. Nf4 {[%clk 0:01:37]}  Rxg5 {[%clk 0:00:40]} 28. hxg5 {[%clk 0:01:38]}  h4 {[%clk 0:00:41]} 29. Ke2 {[%clk 0:01:36]}  Kd7 {[%clk 0:00:33]} 30. Kf3 {[%clk 0:01:37]}  e5 {[%clk 0:00:33]} 31. Nxd5 {[%clk 0:01:28]}  h3 {[%clk 0:00:32]} 32. Ne3 {[%clk 0:01:28]}  Nh4+ {[%clk 0:00:25]} 33. Kg3 {[%clk 0:01:29]}  h2 {[%clk 0:00:26]} 34. Kxh2 {[%clk 0:01:30]}  Nf3+ {[%clk 0:00:27]} 35. Kg3 {[%clk 0:01:30]}  Nxg5 {[%clk 0:00:28]} 36. Kg4 {[%clk 0:01:31]}  Ne6 {[%clk 0:00:25]} 37. Nc4 {[%clk 0:01:26]}  Kc6 {[%clk 0:00:25]} 38. Kf5 {[%clk 0:01:24]}  Nc5 {[%clk 0:00:19]} 39. Nxe5+ {[%clk 0:01:25]}  Kd5 {[%clk 0:00:20]} 40. f4 {[%clk 0:01:25]}  b5 {[%clk 0:00:20]} 41. b4 {[%clk 0:01:18]}  Na4 {[%clk 0:00:19]} 42. Kg6 {[%clk 0:01:15]}  Nc3 {[%clk 0:00:19]} 43. Ng4 {[%clk 0:01:13]}  Nxa2 {[%clk 0:00:19]} 44. f5 {[%clk 0:01:14]}  Nxb4 {[%clk 0:00:16]} 45. f6 {[%clk 0:01:14]}  Nxd3 {[%clk 0:00:16]} 46. Ne3+ {[%clk 0:01:00]}  Ke6 {[%clk 0:00:14]} 47. Kg7 {[%clk 0:00:55]}  Ne5 {[%clk 0:00:10]} 48. Ng4 {[%clk 0:00:55]}  Nf7 {[%clk 0:00:08]} 49. Nf2 {[%clk 0:00:52]}  Nd6 {[%clk 0:00:05]} 50. Kg6 {[%clk 0:00:50]}  b4 {[%clk 0:00:06]} 51. Nd3 {[%clk 0:00:50]}  b3 {[%clk 0:00:06]} 52. Nc5+ {[%clk 0:00:51]}  Kd5 {[%clk 0:00:07]} 53. Nxb3 {[%clk 0:00:51]}  b5 {[%clk 0:00:07]} 54. Na5 {[%clk 0:00:49]}  b4 {[%clk 0:00:07]} 55. f7 {[%clk 0:00:33]}  Nxf7 {[%clk 0:00:07]} 56. Kxf7 {[%clk 0:00:34]}  Kc5 {[%clk 0:00:06]} 57. Ke6 {[%clk 0:00:34]}  Kb5 {[%clk 0:00:07]} 58. Nb3 {[%clk 0:00:34]}  Kc4 {[%clk 0:00:08]} 59. Na5+ {[%clk 0:00:35]}  Kb5 {[%clk 0:00:09]} 60. Nb3 {[%clk 0:00:36]}  Ka4 {[%clk 0:00:09]} 61. Nc5+ {[%clk 0:00:36]}  Ka3 {[%clk 0:00:10]} 62. Kd5 {[%clk 0:00:36]}  b3 {[%clk 0:00:11]} 63. Nd3 {[%clk 0:00:37]}  Ka2 {[%clk 0:00:11]} 64. Kc4 {[%clk 0:00:37]}  Ka3 {[%clk 0:00:12]} 65. Kc3 {[%clk 0:00:37]}  b2 {[%clk 0:00:12]} 66. Nxb2 {[%clk 0:00:36]} 1/2-1/2


[Site "https://www.chess.com"]